bitfinex/quotes_BTCUSD_20250808
["timestamp","ask_amount","ask_price","bid_price","bid_amount"]
[1754649071822,0.64820852,116680.0,116670.0,0.68592508]
[1754649074691,0.51864852,116680.0,116670.0,0.68592508]
[1754649075098,0.20148898,116680.0,116670.0,0.68592508]
[1754649075270,0.51864852,116680.0,116670.0,0.68592508]
[1754649077058,0.51552852,116680.0,116670.0,0.68592508]
[1754649086241,0.19836898,116680.0,116670.0,0.68592508]
[1754649086437,0.51552852,116680.0,116670.0,0.68592508]
[1754649086675,0.51552852,116680.0,116670.0,0.68898508]
[1754649087135,0.51552852,116680.0,116670.0,0.68592508]
[1754649087393,0.51851852,116680.0,116670.0,0.68592508]
[1754649092226,0.83567806,116680.0,116670.0,0.51450141]
[1754649092417,0.96519806,116680.0,116670.0,0.38295141]
[1754649092623,0.96519806,116680.0,116670.0,0.51247141]
[1754649094476,0.96519806,116680.0,116670.0,0.38295141]
[1754649095502,0.96519806,116680.0,116670.0,0.2960893]
[1754649100720,0.96519806,116680.0,116670.0,0.026762]
[1754649105690,0.19836898,116680.0,116670.0,0.11563411]
[1754649105927,0.32587898,116680.0,116670.0,0.11869411]
[1754649106157,0.64515852,116680.0,116670.0,0.11869411]
[1754649106373,0.64515852,116680.0,116670.0,0.11563411]
[1754649107601,0.19635898,116680.0,116670.0,0.29011778]
[1754649107808,0.51351852,116680.0,116670.0,0.29011778]
[1754649108212,0.51563852,116680.0,116670.0,0.29011778]
[1754649112996,0.51563852,116680.0,116670.0,0.28705778]
[1754649117314,0.19847898,116680.0,116670.0,0.28705778]
[1754649117537,0.51563852,116680.0,116670.0,0.28705778]
[1754649117718,0.64527852,116680.0,116670.0,0.28705778]
[1754649119900,0.32811898,116680.0,116670.0,0.28705778]
[1754649120110,1.30551806,116680.0,116670.0,0.11362411]
[1754649120336,1.30551806,116680.0,116670.0,0.24322411]
[1754649126188,1.30551806,116680.0,116670.0,0.11362411]
[1754649138367,1.30551806,116680.0,116670.0,0.026762]
[1754649145490,1.6226776,116680.0,116670.0,0.001]
[1754649146166,1.30551806,116680.0,116670.0,0.001]
[1754649150912,0.67119898,116680.0,116670.0,0.001]
[1754649151123,1.30551806,116680.0,116670.0,0.001]
[1754649162509,0.67119898,116680.0,116670.0,0.001]
[1754649162704,1.30551806,116680.0,116670.0,0.001]
[1754649172369,1.30551806,116680.0,116670.0,0.00298]
[1754649172584,1.30243806,116680.0,116670.0,0.00595]
[1754649174401,1.30023806,116680.0,116670.0,0.02892]
[1754649174610,1.27528806,116680.0,116670.0,0.02892]
[1754649176289,1.29940806,116680.0,116670.0,0.02892]
[1754649178333,1.29940806,116680.0,116670.0,0.00595]
[1754649178772,0.66508898,116680.0,116670.0,0.00595]
[1754649178981,1.29940806,116680.0,116670.0,0.02892]
[1754649179192,0.64096898,116680.0,116670.0,0.28720578]
[1754649179423,0.95812852,116680.0,116670.0,0.28720578]
[1754649179659,0.95812852,116680.0,116670.0,0.31296678]
[1754649180623,1.27528806,116680.0,116670.0,0.31296678]
[1754649183095,1.29940806,116680.0,116670.0,0.31296678]
[1754649183492,1.27528806,116680.0,116670.0,0.31296678]
[1754649185433,1.29940806,116680.0,116670.0,0.31296678]
[1754649185643,1.30457806,116680.0,116670.0,0.11560311]
[1754649186717,1.30457806,116680.0,116670.0,0.11362311]
[1754649187137,1.30457806,116680.0,116670.0,0.026761]
[1754649193695,1.30457806,116680.0,116670.0,0.001]
[1754649195306,1.30457806,116680.0,116670.0,0.00298]
[1754649195576,1.29940806,116680.0,116670.0,0.02892]
[1754649195829,0.98224852,116680.0,116670.0,0.02892]
[1754649196054,1.29940806,116680.0,116670.0,0.00595]
[1754649196692,1.30141806,116680.0,116670.0,0.00595]
[1754649197107,1.30141806,116680.0,116670.0,0.00298]
[1754649199401,1.30457806,116680.0,116670.0,0.00298]
[1754649201074,1.30457806,116680.0,116670.0,0.001]
[1754649201930,1.30457806,116680.0,116670.0,0.00316]
[1754649211868,1.30457806,116680.0,116670.0,0.001]
[1754649218003,0.67025898,116680.0,116670.0,0.001]
[1754649218220,1.30457806,116680.0,116670.0,0.001]
[1754649219608,0.67025898,116680.0,116670.0,0.00316]
[1754649219837,0.36412,116680.0,116670.0,0.26446578]
[1754649220063,0.64100898,116680.0,116670.0,0.28787578]
[1754649220313,0.95816852,116680.0,116670.0,0.28787578]
[1754649220532,0.78675954,116680.0,116670.0,0.28787578]
[1754649220746,0.78675954,116680.0,116670.0,0.31363478]
[1754649220962,0.95816852,116680.0,116670.0,0.31363478]
[1754649222216,0.95816852,116680.0,116670.0,0.58296208]
[1754649222451,0.64100898,116680.0,116670.0,0.58296208]
[1754649222678,0.95816852,116680.0,116670.0,0.58296208]
[1754649223398,0.34,116680.0,116670.0,1.02984162]
[1754649223835,0.34,116680.0,116670.0,0.71268208]
[1754649224300,0.65715954,116680.0,116670.0,0.71268208]
[1754649227285,0.49281,116680.0,116670.0,0.71268208]
[1754649227583,0.80996954,116680.0,116670.0,0.71268208]
[1754649231150,0.98137852,116680.0,116670.0,0.71268208]
[1754649231373,0.98137852,116680.0,116670.0,0.68927208]
[1754649231619,0.80996954,116680.0,116670.0,0.68927208]
[1754649232732,0.49281,116680.0,116670.0,0.68927208]
[1754649232950,0.80996954,116680.0,116670.0,0.68927208]
[1754649233387,0.98137852,116680.0,116670.0,0.68927208]
[1754649234251,0.80996954,116680.0,116670.0,0.68927208]
[1754649234511,0.36309,116680.0,116670.0,0.68927208]
[1754649234748,0.68024954,116680.0,116670.0,0.71415208]
[1754649236234,0.68024954,116680.0,116670.0,0.68927208]
[1754649238317,0.85165852,116680.0,116670.0,0.68927208]
[1754649238705,0.98362852,116680.0,116670.0,0.68927208]
[1754649238944,0.81221954,116680.0,116670.0,0.68927208]
[1754649239716,0.49506,116680.0,116670.0,0.68927208]
[1754649239943,0.81221954,116680.0,116670.0,0.68927208]
[1754649240499,0.98362852,116680.0,116670.0,0.68927208]
[1754649240913,0.81221954,116680.0,116670.0,0.68927208]
[1754649242528,0.68241954,116680.0,116670.0,0.68927208]
[1754649242732,0.85382852,116680.0,116670.0,0.68927208]
[1754649245773,0.53666898,116680.0,116670.0,0.68927208]
[1754649245981,0.85382852,116680.0,116670.0,0.68927208]
[1754649253540,0.85382852,116680.0,116670.0,0.68625208]
[1754649255783,0.98350852,116680.0,116670.0,0.68625208]
[1754649257575,0.98673852,116680.0,116670.0,0.68625208]
[1754649257784,1.30389806,116680.0,116670.0,0.51482841]
[1754649258499,1.30389806,116680.0,116670.0,0.51266841]
[1754649259879,1.30389806,116680.0,116670.0,0.38294841]
[1754649277539,0.98673852,116680.0,116670.0,0.38294841]
[1754649277712,1.30389806,116680.0,116670.0,0.38294841]
[1754649281335,0.98673852,116680.0,116670.0,0.55650208]
[1754649281751,0.85705852,116680.0,116670.0,0.55650208]
[1754649283331,0.85705852,116680.0,116670.0,0.38507841]
[1754649283746,0.85705852,116680.0,116670.0,0.55650208]
[1754649283980,0.98673852,116680.0,116670.0,0.55650208]
[1754649285382,0.98673852,116680.0,116670.0,0.38507841]
[1754649286477,0.98673852,116680.0,116670.0,0.55650208]
[1754649286890,0.98673852,116680.0,116670.0,0.38507841]
[1754649287436,0.98673852,116680.0,116670.0,0.55650208]
[1754649288232,0.98673852,116680.0,116670.0,0.38507841]
[1754649288843,0.98350852,116680.0,116670.0,0.55650208]
[1754649289432,0.98350852,116680.0,116670.0,0.38507841]
[1754649289652,0.98350852,116680.0,116670.0,0.55650208]
[1754649295765,0.98663852,116680.0,116670.0,0.55650208]
[1754649297209,0.98663852,116680.0,116670.0,0.68610208]
[1754649297665,0.66947898,116680.0,116670.0,0.68610208]
[1754649297899,0.98663852,116680.0,116670.0,0.68610208]
[1754649300890,1.30379806,116680.0,116670.0,0.51467841]
[1754649302957,1.30379806,116680.0,116670.0,0.38507841]
[1754649304365,1.30379806,116680.0,116670.0,0.38294841]
[1754649304794,1.30379806,116680.0,116670.0,0.51254841]
[1754649305591,1.30379806,116680.0,116670.0,0.68397208]
[1754649305772,1.30379806,116680.0,116670.0,0.68606208]
[1754649305984,1.30379806,116680.0,116670.0,0.51463841]
[1754649306835,1.30379806,116680.0,116670.0,0.68606208]
[1754649307461,0.98663852,116680.0,116670.0,0.51463841]
[1754649307654,0.98663852,116680.0,116670.0,0.68606208]
[1754649307859,0.98663852,116680.0,116670.0,0.51463841]
[1754649308910,0.98663852,116680.0,116670.0,0.68606208]
[1754649309944,0.98663852,116680.0,116670.0,0.51463841]
[1754649313070,1.30379806,116680.0,116670.0,0.51463841]
[1754649314216,1.30379806,116680.0,116670.0,0.38503841]
[1754649314473,1.30379806,116680.0,116670.0,0.51467841]
[1754649315313,1.30379806,116680.0,116670.0,0.68610208]
[1754649321154,1.30379806,116680.0,116670.0,0.51467841]
[1754649322338,1.30379806,116680.0,116670.0,0.68610208]
[1754649323907,1.30379806,116680.0,116670.0,0.51467841]
[1754649324384,1.30379806,116680.0,116670.0,0.68610208]
[1754649330508,0.98663852,116680.0,116670.0,0.68610208]
[1754649335516,0.98663852,116680.0,116670.0,0.68602208]
[1754649336088,0.85695852,116680.0,116670.0,0.68602208]
[1754649336301,0.98651852,116680.0,116670.0,0.68602208]
[1754649336499,0.66935898,116680.0,116670.0,0.68602208]
[1754649336700,0.98651852,116680.0,116670.0,0.68602208]
[1754649339038,0.98651852,116680.0,116670.0,0.51459841]
[1754649340289,0.98651852,116680.0,116670.0,0.68602208]
[1754649340500,0.98651852,116680.0,116670.0,0.51459841]
[1754649342192,1.30367806,116680.0,116670.0,0.51459841]
[1754649342397,0.66935898,116680.0,116670.0,0.51459841]
[1754649342606,1.30367806,116680.0,116670.0,0.51459841]
[1754649359254,1.30367806,116680.0,116670.0,0.38503841]
[1754649359467,1.30367806,116680.0,116670.0,0.51459841]
[1754649370406,1.29837806,116680.0,116670.0,0.51250841]
[1754649371449,0.98121852,116680.0,116670.0,0.51250841]
[1754649371629,0.85165852,116680.0,116670.0,0.68393208]
[1754649371827,0.85165852,116680.0,116670.0,0.51250841]
[1754649372484,0.85367852,116680.0,116670.0,0.51461841]
[1754649373103,1.17083806,116680.0,116670.0,0.51461841]
[1754649373474,1.17381806,116680.0,116670.0,0.51461841]
[1754649373589,1.30337806,116680.0,116670.0,0.51461841]
[1754649375930,1.17381806,116680.0,116670.0,0.51461841]
[1754649378256,1.17381806,116680.0,116670.0,0.68604208]
[1754649378420,1.17083806,116680.0,116670.0,0.68604208]
[1754649378825,1.17083806,116680.0,116670.0,0.51461841]
[1754649380124,0.85367852,116680.0,116670.0,0.51461841]
[1754649382213,0.85367852,116680.0,116670.0,0.68604208]
[1754649382430,0.85367852,116680.0,116670.0,0.51461841]
[1754649382636,1.17083806,116680.0,116670.0,0.51461841]
[1754649384950,0.53651898,116680.0,116670.0,0.68604208]
[1754649385279,0.85367852,116680.0,116670.0,0.51461841]
[1754649386274,0.85660852,116680.0,116670.0,0.51461841]
[1754649387703,0.98616852,116680.0,116670.0,0.51461841]
[1754649389681,0.85660852,116680.0,116670.0,0.51461841]
[1754649396685,0.85660852,116680.0,116670.0,0.71164208]
[1754649396686,0.36309,116680.0,116670.0,0.71164208]
[1754649396899,0.34,116680.0,116670.0,1.02880162]
[1754649397593,0.34,116680.0,116670.0,0.71164208]
[1754649398033,0.65715954,116680.0,116670.0,0.71164208]
[1754649398691,0.82856852,116680.0,116670.0,0.71164208]
[1754649399372,0.85243852,116680.0,116670.0,0.71164208]
[1754649399924,0.68102954,116680.0,116670.0,0.71164208]
[1754649402321,0.85243852,116680.0,116670.0,0.71164208]
[1754649402761,0.85243852,116680.0,116670.0,0.68902208]
[1754649404633,0.68102954,116680.0,116670.0,0.68902208]
[1754649406157,0.85243852,116680.0,116670.0,0.68902208]
[1754649406785,0.85438852,116680.0,116670.0,0.68902208]
[1754649407807,0.85438852,116680.0,116670.0,0.68604208]
[1754649414769,0.36582,116680.0,116670.0,0.68897208]
[1754649414985,0.68297954,116680.0,116670.0,0.68897208]
[1754649415659,0.36387,116680.0,116670.0,0.68897208]
[1754649415872,0.36359,116690.0,116680.0,0.17140898]
[1754649416096,1.02687725,116700.0,116690.0,0.17139429]
[1754649416315,1.02363725,116700.0,116690.0,0.70693594]
[1754649416572,1.02363725,116700.0,116690.0,0.73244594]
[1754649416784,1.02363725,116700.0,116690.0,0.75819994]
[1754649417002,1.02363725,116700.0,116690.0,0.4410404]
[1754649417213,1.34079679,116700.0,116690.0,0.4184604]
[1754649417420,1.34278679,116700.0,116690.0,0.4184604]
[1754649418310,1.34478679,116700.0,116690.0,0.4184604]
[1754649418520,1.34278679,116700.0,116690.0,0.4184604]
[1754649420241,1.34278679,116700.0,116690.0,0.6877877]
[1754649421644,1.34278679,116700.0,116690.0,0.6848577]
[1754649423109,1.02562725,116700.0,116690.0,0.6848577]
[1754649423317,1.34278679,116700.0,116690.0,0.6848577]
[1754649424486,1.02562725,116700.0,116690.0,0.6848577]
[1754649424694,1.34278679,116700.0,116690.0,0.6848577]
[1754649426185,1.34278679,116700.0,116690.0,0.6877877]
[1754649428610,1.34079679,116700.0,116690.0,0.6877877]
[1754649429477,1.02363725,116700.0,116690.0,0.6877877]
[1754649429602,1.34079679,116700.0,116690.0,0.6877877]
[1754649430264,1.02363725,116700.0,116690.0,0.6877877]
[1754649430479,1.34079679,116700.0,116690.0,0.6877877]
[1754649431539,1.02363725,116700.0,116690.0,0.6877877]
[1754649431915,1.34278679,116700.0,116690.0,0.6877877]
[1754649435859,1.02562725,116700.0,116690.0,0.6877877]
[1754649436302,1.34278679,116700.0,116690.0,0.6877877]
[1754649436886,1.02363725,116700.0,116690.0,1.02752724]
[1754649437093,1.00004725,116700.0,116690.0,1.02752724]
[1754649437702,1.00004725,116700.0,116690.0,0.7103677]
[1754649438460,1.02363725,116700.0,116690.0,0.7103677]
[1754649438974,1.02363725,116700.0,116690.0,0.7113677]
[1754649439135,1.02363725,116700.0,116690.0,0.7123677]
[1754649440897,1.02363725,116700.0,116690.0,0.6897877]
[1754649446121,1.02363725,116700.0,116690.0,1.00694724]
[1754649446334,1.00004725,116700.0,116690.0,1.03179724]
[1754649446896,1.00004725,116700.0,116690.0,0.7146377]
[1754649447102,1.02337725,116700.0,116690.0,0.7146377]
[1754649448608,1.00004725,116700.0,116690.0,1.04924626]
[1754649448803,1.00004725,116700.0,116690.0,0.77991896]
[1754649451473,1.00004725,116700.0,116690.0,0.46275942]
[1754649451702,1.00004725,116700.0,116690.0,0.77991896]
[1754649455432,1.00004725,116700.0,116690.0,0.46275942]
[1754649455665,1.00004725,116700.0,116690.0,0.77991896]
[1754649456256,1.00004725,116700.0,116690.0,0.46275942]
[1754649456451,1.00004725,116700.0,116690.0,0.77991896]
[1754649457225,1.02337725,116700.0,116690.0,0.75506896]
[1754649458792,1.02337725,116700.0,116690.0,1.02439626]
[1754649459938,1.02337725,116700.0,116690.0,0.70723672]
[1754649460139,1.02337725,116700.0,116690.0,1.02439626]
[1754649461527,1.02337725,116700.0,116690.0,1.04924626]
[1754649462348,1.02337725,116700.0,116690.0,1.02439626]
[1754649463028,1.00004725,116700.0,116690.0,1.02439626]
[1754649463250,1.00004725,116700.0,116690.0,1.04924626]
[1754649463251,1.02337725,116700.0,116690.0,1.04924626]
[1754649463869,1.02535725,116700.0,116690.0,0.57771672]
[1754649464073,1.02838725,116700.0,116690.0,0.70458672]
[1754649464587,1.02838725,116700.0,116690.0,1.02174626]
[1754649466212,1.02838725,116700.0,116690.0,0.70458672]
[1754649466428,1.02838725,116700.0,116690.0,1.02174626]
[1754649466641,1.02838725,116700.0,116690.0,1.01974626]
[1754649466859,1.34554679,116700.0,116690.0,0.70258672]
[1754649467097,1.66270633,116700.0,116690.0,0.5553377]
[1754649467314,1.66270633,116700.0,116690.0,0.6851777]
[1754649468147,1.34554679,116700.0,116690.0,0.6851777]
[1754649472103,1.83408593,116700.0,116690.0,0.6851777]
[1754649472922,1.66270633,116700.0,116690.0,0.6851777]
[1754649475768,1.6470347,116700.0,116690.0,0.6851777]
[1754649476616,1.8184143,116700.0,116690.0,0.6851777]
[1754649476818,1.8184143,116700.0,116690.0,0.6850977]
[1754649480625,1.50125476,116700.0,116690.0,0.6850977]
[1754649481693,1.32987516,116700.0,116690.0,0.6850977]
[1754649483249,1.50125476,116700.0,116690.0,0.6850977]
[1754649483829,1.8184143,116700.0,116690.0,0.5553377]
[1754649484007,1.8184143,116700.0,116690.0,0.6851377]
[1754649489630,1.18409522,116700.0,116690.0,0.6851377]
[1754649489869,1.8184143,116700.0,116690.0,0.6851377]
[1754649493302,1.6470347,116700.0,116690.0,0.6851377]
[1754649494647,1.8184143,116700.0,116690.0,0.6851377]
[1754649495046,1.6470347,116700.0,116690.0,0.6851377]
[1754649495247,1.32987516,116700.0,116690.0,0.6851377]
[1754649496438,1.6470347,116700.0,116690.0,0.6851377]
[1754649497518,1.8184143,116700.0,116690.0,0.6851377]
[1754649498585,1.6470347,116700.0,116690.0,0.6851377]
[1754649498945,1.8184143,116700.0,116690.0,0.6851377]
[1754649501253,1.18409522,116700.0,116690.0,0.6851377]
[1754649501453,1.8184143,116700.0,116690.0,0.6851377]
[1754649507146,1.18409522,116700.0,116690.0,0.6851377]
[1754649507343,1.8184143,116700.0,116690.0,0.6851377]
[1754649508237,1.18409522,116700.0,116690.0,0.6851377]
[1754649508423,1.8184143,116700.0,116690.0,0.6851377]
[1754649508833,1.18409522,116700.0,116690.0,0.6851377]
[1754649509040,1.50125476,116700.0,116690.0,0.6851377]
[1754649510316,1.8184143,116700.0,116690.0,0.6851377]
[1754649516453,1.8184143,116700.0,116690.0,0.5553377]
[1754649516658,1.8184143,116700.0,116690.0,0.6850577]
[1754649525267,1.81832426,116700.0,116690.0,0.6850577]
[1754649528009,1.18400518,116700.0,116690.0,0.6850577]
[1754649528222,1.50116472,116700.0,116690.0,0.6850577]
[1754649530894,1.18400518,116700.0,116690.0,0.6850577]
[1754649531147,1.50116472,116700.0,116690.0,0.6850577]
[1754649532327,1.01262558,116700.0,116690.0,0.6850577]
[1754649532538,1.32978512,116700.0,116690.0,0.6850577]
[1754649532718,1.50116472,116700.0,116690.0,0.6850577]
[1754649533491,1.49918472,116700.0,116690.0,0.6850577]
[1754649534411,1.47282472,116700.0,116690.0,0.6850577]
[1754649534994,1.30144512,116700.0,116690.0,0.6850577]
[1754649542126,0.98428558,116700.0,116690.0,1.00221724]
[1754649542755,0.98428558,116700.0,116690.0,0.6850577]
[1754649542941,0.98428558,116700.0,116690.0,1.00221724]
[1754649543818,0.98428558,116700.0,116690.0,0.6850577]
[1754649545809,0.98428558,116700.0,116690.0,1.00221724]
[1754649546210,0.98428558,116700.0,116690.0,0.6850577]
[1754649549914,0.98428558,116700.0,116690.0,1.00221724]
[1754649551513,0.98428558,116700.0,116690.0,0.6850577]
[1754649551722,1.30144512,116700.0,116690.0,0.6850577]
[1754649551937,0.98428558,116700.0,116690.0,0.6850577]
[1754649552145,1.30144512,116700.0,116690.0,0.6850577]
[1754649552486,0.98428558,116700.0,116690.0,0.6850577]
[1754649552692,1.30144512,116700.0,116690.0,0.6850577]
[1754649554480,1.32985512,116700.0,116690.0,0.6850577]
[1754649555981,1.50123472,116700.0,116690.0,0.6850577]
[1754649558479,1.18407518,116700.0,116690.0,0.6850577]
[1754649558698,1.50123472,116700.0,116690.0,0.6850577]
[1754649575511,1.18407518,116700.0,116690.0,0.6850577]
[1754649575740,1.50123472,116700.0,116690.0,0.6850577]
[1754649575949,1.50123472,116700.0,116690.0,0.51366341]
[1754649576153,1.81839426,116700.0,116690.0,0.51366341]
[1754649578122,1.81839426,116700.0,116690.0,0.6850577]
[1754649579189,1.81839426,116700.0,116690.0,0.51366341]
[1754649579644,1.81839426,116700.0,116690.0,0.6850577]
[1754649579891,1.81839426,116700.0,116690.0,0.38394341]
[1754649580142,2.15839426,116700.0,116690.0,0.51394341]
[1754649580385,2.28835426,116700.0,116690.0,0.51394341]
[1754649580619,2.28835426,116700.0,116690.0,0.4270813]
[1754649582732,2.28835426,116700.0,116690.0,0.4250813]
[1754649582943,2.28835426,116700.0,116690.0,0.155754]
[1754649584471,2.28835426,116700.0,116690.0,0.025754]
[1754649586360,2.28835426,116700.0,116690.0,0.155714]
[1754649589335,2.28835426,116700.0,116690.0,0.155674]
[1754649589579,0.51139429,116690.0,116680.0,0.12992]
[1754649589800,0.83060383,116690.0,116680.0,0.51186741]
[1754649590007,0.85841383,116690.0,116680.0,0.51186741]
[1754649590457,0.85841383,116690.0,116680.0,0.51190741]
[1754649590928,0.85841383,116690.0,116680.0,0.51290741]
[1754649591144,0.85841383,116690.0,116680.0,0.51390741]
[1754649592635,0.54125429,116690.0,116680.0,0.51390741]
[1754649592843,0.85841383,116690.0,116680.0,0.51390741]
[1754649594384,0.98837383,116690.0,116680.0,0.51390741]
[1754649595520,0.98837383,116690.0,116680.0,0.51290741]
[1754649596754,0.98837383,116690.0,116680.0,0.4260453]
[1754649596936,0.98837383,116690.0,116680.0,0.4250453]
[1754649597162,1.30553337,116690.0,116680.0,0.4250453]
[1754649597299,1.30553337,116690.0,116680.0,0.3992873]
[1754649598853,0.67121429,116690.0,116680.0,0.3992873]
[1754649599048,1.30553337,116690.0,116680.0,0.3992873]
[1754649599292,0.98837383,116690.0,116680.0,0.3992873]
[1754649600767,0.98837383,116690.0,116680.0,0.12996]
[1754649600971,1.30553337,116690.0,116680.0,0.12996]
[1754649601803,0.98837383,116690.0,116680.0,0.12996]
[1754649604867,1.30553337,116690.0,116680.0,0.12996]
[1754649605507,0.98837383,116690.0,116680.0,0.12996]
[1754649612689,0.67121429,116690.0,116680.0,0.12996]
[1754649612897,0.98837383,116690.0,116680.0,0.12996]
[1754649615539,0.67121429,116690.0,116680.0,0.12996]
[1754649615727,0.98837383,116690.0,116680.0,0.12996]
[1754649615929,0.98837383,116690.0,116680.0,0.15572]
[1754649618632,1.30553337,116690.0,116680.0,0.12996]
[1754649618873,0.98837383,116690.0,116680.0,0.12996]
[1754649619030,0.67121429,116690.0,116680.0,0.12996]
[1754649619228,0.98837383,116690.0,116680.0,0.12996]
[1754649619632,0.51140898,116680.0,116670.0,0.2950873]
[1754649619903,1.17453806,116680.0,116670.0,0.51182941]
[1754649620115,1.17453806,116680.0,116670.0,0.51379941]
[1754649620339,1.17151806,116680.0,116670.0,0.51379941]
[1754649620971,1.17151806,116680.0,116670.0,0.51883941]
[1754649622310,0.85435852,116680.0,116670.0,0.51883941]
[1754649622983,0.53719898,116680.0,116670.0,0.51883941]
[1754649623198,0.85435852,116680.0,116670.0,0.51883941]
[1754649623410,0.86289845,116680.0,116670.0,0.51883941]
[1754649624601,0.86081845,116680.0,116670.0,0.51883941]
[1754649624810,0.54365891,116680.0,116670.0,0.54249941]
[1754649625037,0.86081845,116680.0,116670.0,0.54249941]
[1754649626984,0.86081845,116680.0,116670.0,0.51883941]
[1754649627932,0.54365891,116680.0,116670.0,0.69026308]
[1754649628142,0.86081845,116680.0,116670.0,0.69026308]
[1754649628356,0.86081845,116680.0,116670.0,0.51883941]
[1754649629668,1.17797799,116680.0,116670.0,0.51883941]
[1754649629876,1.17996799,116680.0,116670.0,0.51883941]
[1754649631394,1.17996799,116680.0,116670.0,0.51579941]
[1754649632968,1.17996799,116680.0,116670.0,0.51462111]
[1754649633573,1.18295799,116680.0,116670.0,0.51462111]
[1754649634240,1.18295799,116680.0,116670.0,0.48693111]
[1754649634445,1.18295799,116680.0,116670.0,0.35701111]
[1754649634677,0.54863891,116680.0,116670.0,0.48693111]
[1754649634884,1.18295799,116680.0,116670.0,0.48693111]
[1754649635508,1.18295799,116680.0,116670.0,0.48593111]
[1754649635919,1.18295799,116680.0,116670.0,0.48493111]
[1754649636125,1.18295799,116680.0,116670.0,0.21678211]
[1754649636599,1.31287799,116680.0,116670.0,0.21678211]
[1754649636806,0.67855891,116680.0,116670.0,0.21678211]
[1754649637015,1.31287799,116680.0,116670.0,0.21678211]
[1754649637682,1.31287799,116680.0,116670.0,0.08686211]
[1754649638271,1.31287799,116680.0,116670.0,0.21690211]
[1754649640730,1.31287799,116680.0,116670.0,0.24266411]
[1754649643005,1.31287799,116680.0,116670.0,0.155802]
[1754649643427,1.31287799,116680.0,116670.0,0.025762]
[1754649643641,1.31287799,116680.0,116670.0,0.155762]
[1754649644302,1.31287799,116680.0,116670.0,0.13]
[1754649647241,1.31287799,116680.0,116670.0,0.13196]
[1754649647492,1.18295799,116680.0,116670.0,0.13196]
[1754649651394,1.31303799,116680.0,116670.0,0.13196]
[1754649652198,1.31303799,116680.0,116670.0,0.13]
[1754649653626,0.67871891,116680.0,116670.0,0.13]
[1754649653829,1.31303799,116680.0,116670.0,0.13]
[1754649657438,0.54863891,116680.0,116670.0,0.13]
[1754649657658,1.18295799,116680.0,116670.0,0.13]
[1754649661414,1.31295799,116680.0,116670.0,0.13]
[1754649661661,0.67863891,116680.0,116670.0,0.13]
[1754649661883,1.31295799,116680.0,116670.0,0.13]
[1754649664036,0.17142367,116670.0,116660.0,0.50008015]
[1754649664267,0.48858321,116670.0,116660.0,0.71911226]
[1754649666030,0.48858321,116670.0,116660.0,0.72011226]
[1754649666275,0.48858321,116670.0,116660.0,0.72111226]
[1754649667316,0.51115321,116670.0,116660.0,0.72111226]
[1754649668150,0.19399367,116670.0,116660.0,0.72111226]
[1754649668351,0.51115321,116670.0,116660.0,0.72111226]
[1754649674079,0.19399367,116670.0,116660.0,0.72111226]
[1754649674292,0.51115321,116670.0,116660.0,0.72111226]
[1754649674500,0.17142367,116670.0,116660.0,0.72111226]
[1754649674712,0.48858321,116670.0,116660.0,0.72111226]
[1754649676751,0.17142367,116670.0,116660.0,0.72111226]
[1754649676962,0.48858321,116670.0,116660.0,0.72111226]
[1754649677171,0.51115321,116670.0,116660.0,0.72111226]
[1754649679565,0.51115321,116670.0,116660.0,0.69745226]
[1754649679783,0.51325321,116670.0,116660.0,0.69745257]
[1754649682194,0.19609367,116670.0,116660.0,0.69745257]
[1754649682407,0.51325321,116670.0,116660.0,0.69745257]
[1754649683193,0.51325321,116670.0,116660.0,0.69441257]
[1754649683402,0.19609367,116670.0,116660.0,0.69441257]
[1754649683613,0.51325321,116670.0,116660.0,0.69441257]
[1754649684275,0.51620321,116670.0,116660.0,0.69441257]
[1754649685782,0.19904367,116670.0,116660.0,0.69441257]
[1754649685991,0.51620321,116670.0,116660.0,0.69441257]
[1754649686414,0.51325321,116670.0,116660.0,0.69441257]
[1754649687412,0.51325321,116670.0,116660.0,0.69429257]
[1754649687615,0.51325321,116670.0,116660.0,0.69433257]
[1754649693649,0.51325321,116670.0,116660.0,0.69429257]
[1754649694438,0.51325321,116670.0,116660.0,0.69425257]
[1754649694798,0.51325321,116670.0,116660.0,0.56437257]
[1754649695209,0.51325321,116670.0,116660.0,0.69429257]
[1754649695331,0.51325321,116670.0,116660.0,0.56437257]
[1754649695656,0.51325321,116670.0,116660.0,0.69429257]
[1754649699420,0.19609367,116670.0,116660.0,0.69429257]
[1754649699656,0.51325321,116670.0,116660.0,0.69429257]
[1754649699993,0.19399367,116670.0,116660.0,0.72221257]
[1754649700193,0.51115321,116670.0,116660.0,0.72221257]
[1754649702143,0.51115321,116670.0,116660.0,0.69739257]
[1754649707576,0.51115321,116670.0,116660.0,0.69731257]
[1754649708324,0.51115321,116670.0,116660.0,0.56747257]
[1754649708529,0.51115321,116670.0,116660.0,0.69727257]
[1754649709299,0.51115321,116670.0,116660.0,0.56747257]
[1754649709592,0.51115321,116670.0,116660.0,0.69727257]
[1754649710010,0.33972954,116670.0,116660.0,0.69727257]
[1754649710415,0.33972954,116670.0,116660.0,0.72209257]
[1754649712423,0.33972954,116670.0,116660.0,0.69727257]
[1754649712929,0.33972954,116670.0,116660.0,0.72068257]
[1754649713735,0.33972954,116670.0,116660.0,0.69727257]
[1754649714507,0.51115321,116670.0,116660.0,0.69727257]
[1754649714725,0.51045321,116670.0,116660.0,0.69727257]
[1754649715571,0.51045321,116670.0,116660.0,0.72068257]
[1754649715775,0.51045321,116670.0,116660.0,0.69727257]
[1754649716012,0.51245321,116670.0,116660.0,0.69727257]
[1754649716440,0.19529367,116670.0,116660.0,0.69727257]
[1754649716635,0.51245321,116670.0,116660.0,0.69727257]
[1754649717183,0.51245321,116670.0,116660.0,0.69417257]
[1754649718639,0.51566321,116670.0,116660.0,0.69417257]
[1754649718774,0.51566321,116670.0,116660.0,0.69204257]
[1754649720906,0.51566321,116670.0,116660.0,0.52060421]
[1754649721561,0.51566321,116670.0,116660.0,0.39080421]
[1754649721768,0.51566321,116670.0,116660.0,0.52060421]
[1754649722443,0.51566321,116670.0,116660.0,0.39080421]
[1754649722633,0.51566321,116670.0,116660.0,0.52060421]
[1754649722870,0.85566321,116670.0,116660.0,0.39080421]
[1754649723077,0.85566321,116670.0,116660.0,0.52060421]
[1754649731042,0.53850367,116670.0,116660.0,0.52060421]
[1754649731259,0.85566321,116670.0,116660.0,0.52060421]
[1754649731467,0.53850367,116670.0,116660.0,0.52060421]
[1754649731670,0.85566321,116670.0,116660.0,0.52274421]
[1754649734523,0.85566321,116670.0,116660.0,0.52060421]
[1754649737017,0.98542321,116670.0,116660.0,0.52060421]
[1754649741591,0.98542321,116670.0,116660.0,0.49484221]
[1754649746529,0.98542321,116670.0,116660.0,0.49687221]
[1754649750968,0.85566321,116670.0,116660.0,0.49687221]
[1754649751131,0.85566321,116670.0,116660.0,0.49484221]
[1754649752983,0.98542321,116670.0,116660.0,0.52060421]
[1754649753184,0.98542321,116670.0,116660.0,0.12265521]
[1754649753185,1.30258275,116670.0,116660.0,0.12265521]